fUST/lending_fUST_20250427
["ID","MTS","AMOUNT","RATE_DAILY","PERIOD"]
[359132340,1745728234605,-518.05775121,0.00016438,2]
[359132341,1745728234617,-519.4166994,0.00016438,2]
[359132342,1745728234628,-506.27256282,0.00016438,2]
[359132343,1745728234639,-506.40065967,0.00016438,2]
[359132344,1745728234649,-507.16849093,0.00016438,2]
[359132345,1745728234659,-502.83061578,0.00016438,2]
[359132346,1745728234669,-400.0,0.00016438,2]
[359132347,1745728234680,-502.5583881,0.00016438,2]
[359132348,1745728234692,-500.0,0.00016438,2]
[359132349,1745728234704,-508.14539928,0.00016438,2]
[359132350,1745728234713,-508.03526664,0.00016438,2]
[359132351,1745728234723,-499.49258284,0.00016438,2]
[359132352,1745728234733,-504.56772343,0.00016438,2]
[359132353,1745728234744,-509.49168143,0.00016438,2]
[359132354,1745728234753,-400.0,0.00016438,2]
[359132355,1745728234763,-400.0,0.00016438,2]
[359132356,1745728234773,-504.24709632,0.00016438,2]
[359132357,1745728234784,-400.0,0.00016438,2]
[359132358,1745728234794,-400.0,0.00016438,2]
[359132359,1745728234806,-400.0,0.00016438,2]
[359132360,1745728234816,-510.72392198,0.00016438,2]
[359132361,1745728234827,-400.0,0.00016438,2]
[359132362,1745728234838,-501.84924071,0.00016438,2]
[359132363,1745728234849,-505.58968311,0.00016438,2]
[359132364,1745728234859,-500.0,0.00016438,2]
[359132365,1745728234868,-504.38322095,0.00016438,2]
[359132366,1745728234878,-519.46294484,0.00016438,2]
[359132367,1745728234888,-429.27,0.00016438,2]
[359132368,1745728234899,-505.25592692,0.00016438,2]
[359132369,1745728234908,-480.73018175,0.00016438,2]
[359132370,1745728234918,-507.19608171,0.00016438,2]
[359132371,1745728234930,-515.17335736,0.00016438,2]
[359132372,1745728234940,-512.17563273,0.00016438,2]
[359132373,1745728234950,-402.48,0.00016438,2]
[359132374,1745728234959,-400.0,0.00016438,2]
[359132375,1745728234969,-503.22823302,0.00016438,2]
[359132376,1745728234978,-400.0,0.00016438,2]
[359132377,1745728234988,-504.0632292,0.00016438,2]
[359132378,1745728234997,-400.0,0.00016438,2]
[359132379,1745728235007,-501.43966096,0.00016438,2]
[359132380,1745728235017,-510.54333275,0.00016438,2]
[359132381,1745728235027,-478.17,0.00016438,2]
[359132382,1745728235038,-504.59869499,0.00016438,2]
[359132383,1745728235048,-502.31934845,0.00016438,2]
[359132384,1745728235058,-400.0,0.00016438,2]
[359132385,1745728235068,-500.0,0.00016438,2]
[359132386,1745728235080,-490.27,0.00016438,2]
[359132387,1745728235091,-400.0,0.00016438,2]
[359132388,1745728235103,-400.0,0.00016438,2]
[359132389,1745728235114,-400.0,0.00016438,2]
[359132390,1745728235124,-507.33963079,0.00016438,2]
[359132391,1745728235135,-508.69909673,0.00016438,2]
[359132392,1745728235147,-400.0,0.00016438,2]
[359132393,1745728235159,-504.26410498,0.00016438,2]
[359132394,1745728235169,-524.30518756,0.00016438,2]
[359132395,1745728235181,-431.58,0.00016438,2]
[359132396,1745728235191,-506.20368352,0.00016438,2]
[359132397,1745728235202,-510.45122176,0.00016438,2]
[359132398,1745728235212,-506.41763636,0.00016438,2]
[359132399,1745728235223,-511.76293668,0.00016438,2]
[359132400,1745728235234,-400.0,0.00016438,2]
[359132401,1745728235245,-504.7468304,0.00016438,2]
[359132402,1745728235257,-507.93818037,0.00016438,2]
[359132403,1745728235268,-400.0,0.00016438,2]
[359132404,1745728235279,-509.56134358,0.00016438,2]
[359132405,1745728235290,-528.96009217,0.00016438,2]
[359132406,1745728235301,-400.0,0.00016438,2]
[359132407,1745728235312,-400.0,0.00016438,2]
[359132408,1745728235323,-458.22,0.00016438,2]
[359132409,1745728235333,-400.0,0.00016438,2]
[359132410,1745728235345,-400.0,0.00016438,2]
[359132411,1745728235355,-400.0,0.00016438,2]
[359132412,1745728235366,-400.0,0.00016438,2]
[359132413,1745728235377,-510.54584261,0.00016438,2]
[359132414,1745728235387,-504.35103937,0.00016438,2]
[359132415,1745728235398,-400.0,0.00016438,2]
[359132416,1745728235408,-400.0,0.00016438,2]
[359132417,1745728235418,-500.0,0.00016438,2]
[359132418,1745728235428,-400.0,0.00016438,2]
[359132419,1745728235439,-400.0,0.00016438,2]
[359132420,1745728235450,-400.0,0.00016438,2]
[359132421,1745728235461,-505.6072385,0.00016438,2]
[359132422,1745728235471,-400.0,0.00016438,2]
[359132423,1745728235481,-502.44118871,0.00016438,2]
[359132424,1745728235490,-506.20664909,0.00016438,2]
[359132425,1745728235500,-504.97992224,0.00016438,2]
[359132426,1745728235510,-502.752077,0.00016438,2]
[359132427,1745728235522,-511.01340646,0.00016438,2]
[359132428,1745728235532,-400.0,0.00016438,2]
[359132429,1745728235544,-400.0,0.00016438,2]
[359132430,1745728235555,-400.0,0.00016438,2]
[359132431,1745728235567,-513.01441313,0.00016438,2]
[359132432,1745728235578,-400.0,0.00016438,2]
[359132433,1745728235588,-400.0,0.00016438,2]
[359132434,1745728235597,-502.84233336,0.00016438,2]
[359132435,1745728235611,-400.0,0.00016438,2]
[359132436,1745728235622,-400.0,0.00016438,2]
[359132437,1745728235633,-400.0,0.00016438,2]
[359132438,1745728235644,-501.70072597,0.00016438,2]
[359132439,1745728235656,-505.6780022,0.00016438,2]
[359132440,1745728235666,-400.0,0.00016438,2]
[359132441,1745728235677,-482.85737287,0.00016438,2]
[359132442,1745728235691,-512.42662197,0.00016438,2]
[359132443,1745728235702,-502.28956624,0.00016438,2]
[359132444,1745728235712,-507.27291913,0.00016438,2]
[359132445,1745728235723,-514.64616384,0.00016438,2]
[359132446,1745728235735,-503.06489868,0.00016438,2]
[359132447,1745728235745,-515.7295866,0.00016438,2]
[359132448,1745728235754,-502.78254316,0.00016438,2]
[359132449,1745728235766,-400.0,0.00016438,2]
[359132450,1745728235776,-400.0,0.00016438,2]
[359132451,1745728235786,-500.0,0.00016438,2]
[359132452,1745728235796,-514.03672461,0.00016438,2]
[359132453,1745728235806,-500.0,0.00016438,2]
[359132454,1745728235815,-516.95072755,0.00016438,2]
[359132455,1745728235825,-502.85227254,0.00016438,2]
[359132456,1745728235835,-506.70952167,0.00016438,2]
[359132457,1745728235845,-521.26057724,0.00016438,2]
[359132458,1745728235855,-513.57003932,0.00016438,2]
[359132459,1745728235865,-400.0,0.00016438,2]
[359132460,1745728235875,-400.0,0.00016438,2]
[359132461,1745728235884,-400.0,0.00016438,2]
[359132462,1745728235894,-400.0,0.00016438,2]
[359132463,1745728235905,-508.87001889,0.00016438,2]
[359132464,1745728235917,-400.0,0.00016438,2]
[359132465,1745728235927,-400.0,0.00016438,2]
[359132466,1745728235937,-400.0,0.00016438,2]
[359132467,1745728235946,-855.66,0.00016438,2]
[359132468,1745728235956,-400.0,0.00016438,2]
[359132469,1745728235966,-407.07,0.00016438,2]
[359132470,1745728235975,-400.0,0.00016438,2]
[359132471,1745728235985,-400.0,0.00016438,2]
[359132472,1745728235996,-513.29691385,0.00016438,2]
[359132473,1745728236006,-1124.94013962,0.00016438,2]
[359132474,1745728236017,-400.0,0.00016438,2]
[359132475,1745728236027,-768.34,0.00016438,2]
[359132476,1745728236037,-500.0,0.00016438,2]
[359132477,1745728236048,-519.31141639,0.00016438,2]
[359132478,1745728236060,-400.0,0.00016438,2]
[359132479,1745728236071,-400.0,0.00016438,2]
[359132480,1745728236082,-400.0,0.00016438,2]
[359132481,1745728236093,-400.0,0.00016438,2]
[359132482,1745728236105,-518.45666134,0.00016438,2]
[359132483,1745728236114,-759.3,0.00016438,2]
[359132484,1745728236124,-505.68073751,0.00016438,2]
[359132485,1745728236134,-400.0,0.00016438,2]
[359132486,1745728236144,-397.0063136,0.00016438,2]
[359132487,1745728236288,-2.9936864,0.00016438,2]
[359132488,1745728236298,-508.62685399,0.00016438,2]
[359132489,1745728236309,-516.75246665,0.00016438,2]
[359132490,1745728236319,-509.97,0.00016438,2]
[359132491,1745728236330,-505.65146429,0.00016438,2]
[359132492,1745728236341,-400.0,0.00016438,2]
[359132493,1745728236352,-400.0,0.00016438,2]
[359132494,1745728236363,-506.68628568,0.00016438,2]
[359132495,1745728236373,-400.0,0.00016438,2]
[359132496,1745728236383,-506.26271609,0.00016438,2]
[359132497,1745728236392,-400.0,0.00016438,2]
[359132498,1745728236402,-400.0,0.00016438,2]
[359132499,1745728236414,-505.39862858,0.00016438,2]
[359132500,1745728236425,-519.05025982,0.00016438,2]
[359132501,1745728236436,-78.53284014,0.00016438,2]
[359132502,1745728236450,-429.01354878,0.00016438,2]
[359132503,1745728236460,-522.58188754,0.00016438,2]
[359132504,1745728236472,-511.69883711,0.00016438,2]
[359132505,1745728236483,-400.0,0.00016438,2]
[359132506,1745728236494,-524.31175591,0.00016438,2]
[359132507,1745728236506,-501.13357522,0.00016438,2]
[359132508,1745728236517,-500.0,0.00016438,2]
[359132509,1745728236528,-460.92922929,0.00016438,2]
[359132510,1745728236540,-400.0,0.00016438,2]
[359132511,1745728236551,-400.0,0.00016438,2]
[359132512,1745728236560,-510.92559531,0.00016438,2]
[359132513,1745728236570,-447.36,0.00016438,2]
[359132514,1745728236582,-514.97795113,0.00016438,2]
[359132515,1745728236592,-400.0,0.00016438,2]
[359132516,1745728236602,-949.7,0.00016438,2]
[359132517,1745728236611,-500.0,0.00016438,2]
[359132518,1745728236621,-500.0,0.00016438,2]
[359132519,1745728236630,-514.8517878,0.00016438,2]
[359132520,1745728236640,-500.0,0.00016438,2]
[359132521,1745728236649,-500.0,0.00016438,2]
[359132522,1745728236661,-500.0,0.00016438,2]
[359132523,1745728236671,-365.66913408,0.00016438,2]
[359132524,1745728236682,-238.81591346,0.00016438,2]
[359132525,1745728236693,-505.35034532,0.00016438,2]
[359132526,1745728236704,-400.0,0.00016438,2]
[359132527,1745728236714,-502.76118637,0.00016438,2]
[359132528,1745728236723,-456.67,0.00016438,2]
[359132529,1745728236734,-500.0,0.00016438,2]
[359132530,1745728236744,-511.1433578,0.00016438,2]
[359132531,1745728236754,-507.77431154,0.00016438,2]
[359132532,1745728236765,-400.0,0.00016438,2]
[359132533,1745728236776,-511.26255765,0.00016438,2]
[359132534,1745728236786,-400.0,0.00016438,2]
[359132535,1745728236796,-506.77773023,0.00016438,2]
[359132536,1745728236806,-400.0,0.00016438,2]
[359132537,1745728236816,-514.42390115,0.00016438,2]
[359132538,1745728236825,-400.0,0.00016438,2]
[359132539,1745728236835,-500.0,0.00016438,2]
[359132540,1745728236845,-400.0,0.00016438,2]
[359132541,1745728236855,-400.0,0.00016438,2]
[359132542,1745728236865,-400.0,0.00016438,2]
[359132543,1745728236874,-519.20097339,0.00016438,2]
[359132544,1745728236885,-400.0,0.00016438,2]
[359132545,1745728236895,-515.2669728,0.00016438,2]
[359132546,1745728236908,-516.17293437,0.00016438,2]
[359132547,1745728236919,-510.17412139,0.00016438,2]
[359132548,1745728237093,-400.0,0.00016438,2]
[359132549,1745728237104,-519.66283113,0.00016438,2]
[359132550,1745728237114,-510.56364636,0.00016438,2]
[359132551,1745728237124,-400.0,0.00016438,2]
[359132552,1745728237134,-506.08834945,0.00016438,2]
[359132553,1745728237144,-512.57931583,0.00016438,2]
[359132554,1745728237154,-400.0,0.00016438,2]
[359132555,1745728237163,-500.0,0.00016438,2]
[359132556,1745728237173,-504.07998586,0.00016438,2]
[359132557,1745728237184,-400.0,0.00016438,2]
[359132558,1745728237195,-504.41649786,0.00016438,2]
[359132559,1745728237205,-400.0,0.00016438,2]
[359132560,1745728237217,-1046.68,0.00016438,2]
[359132561,1745728237228,-513.6532623,0.00016438,2]
[359132562,1745728237239,-400.0,0.00016438,2]
[359132563,1745728237248,-400.0,0.00016438,2]
[359132564,1745728237257,-400.0,0.00016438,2]
[359132565,1745728237267,-513.96560598,0.00016438,2]
[359132566,1745728237276,-400.0,0.00016438,2]
[359132567,1745728237286,-400.0,0.00016438,2]
[359132568,1745728237296,-511.63345706,0.00016438,2]
[359132569,1745728237306,-400.0,0.00016438,2]
[359132570,1745728237316,-518.2248331,0.00016438,2]
[359132571,1745728237326,-505.83689698,0.00016438,2]
[359132572,1745728237338,-400.0,0.00016438,2]
[359132573,1745728237348,-400.0,0.00016438,2]
[359132574,1745728237359,-400.0,0.00016438,2]
[359132575,1745728237368,-509.71488029,0.00016438,2]
[359132576,1745728237379,-400.0,0.00016438,2]
[359132577,1745728237388,-400.0,0.00016438,2]
[359132578,1745728237398,-400.0,0.00016438,2]
[359132580,1745728237408,-509.29301951,0.00016438,2]
[359132581,1745728237418,-221.20623022,0.00016438,2]
[359132582,1745728237428,-518.09973231,0.00016438,2]
[359132583,1745728237437,-400.0,0.00016438,2]
[359132584,1745728237447,-219.16937757,0.00016438,2]
[359132586,1745728237465,-282.87344512,0.00016438,2]
[359132588,1745728237474,-502.09947175,0.00016438,2]
[359132589,1745728237484,-485.00257289,0.00016438,2]
[359132600,1745728238166,-391.98946055,0.000159,2]
[359132601,1745728238177,-449.05976767,0.00016427,2]
[359132602,1745728238187,-213.39600389,0.00016427,2]
[359132603,1745728238200,-25.97670987,0.00016438,2]
[359132604,1745728238210,-716.53,0.00016438,2]
[359132605,1745728238221,-518.48410436,0.00016438,2]
[359132606,1745728238232,-500.0,0.00016438,2]
[359132607,1745728238243,-400.0,0.00016438,2]
[359132608,1745728238255,-500.0,0.00016438,2]
[359132609,1745728238265,-400.0,0.00016438,2]
[359132610,1745728238277,-507.48760639,0.00016438,2]
[359132611,1745728238287,-400.0,0.00016438,2]
[359132612,1745728238299,-504.64730258,0.00016438,2]
[359132613,1745728238309,-297.1111412,0.00016438,2]
[359132614,1745728238320,-521.73422921,0.00016438,2]
[359132615,1745728238331,-514.64932986,0.00016438,2]
[359132616,1745728238343,-507.44511,0.00016438,2]
[359132617,1745728238354,-400.0,0.00016438,2]
[359132618,1745728238365,-518.09020635,0.00016438,2]
[359132619,1745728238374,-400.0,0.00016438,2]
[359132620,1745728238384,-151.0,0.00016438,2]
[359132621,1745728238393,-500.0,0.00016438,2]
[359132622,1745728238404,-1624.51043499,0.00016479,2]
[359132623,1745728238416,-1000.0,0.00016574,2]
[359132624,1745728238426,-1624.51043499,0.00016619,2]
[359132625,1745728238437,-250.0,0.000167,2]
[359132626,1745728238448,-400.0,0.00016712,2]
[359132627,1745728238458,-400.0,0.00016712,2]
[359132628,1745728238468,-153.06216664,0.00016712,2]
[359132629,1745728238477,-400.0,0.00016712,2]
[359132630,1745728238487,-400.0,0.00016712,2]
[359132631,1745728238496,-411.94558683,0.00016712,2]
[359132632,1745728238505,-400.0,0.00016712,2]
[359132633,1745728238515,-400.0,0.00016712,2]
[359132634,1745728238525,-202.06850087,0.00016712,2]
[359132635,1745728238534,-400.0,0.00016712,2]
[359132636,1745728238544,-504.63,0.00016712,2]
[359132637,1745728238553,-465.24,0.00016712,2]
[359132638,1745728238563,-432.16,0.00016712,2]
[359132639,1745728238572,-400.0,0.00016712,2]
[359132640,1745728238581,-185.4607289,0.00016712,2]
[359132641,1745728238590,-192.62333183,0.00016712,2]
[359132642,1745728238600,-400.0,0.00016712,2]
[359132643,1745728238609,-400.0,0.00016712,2]
[359132644,1745728238619,-400.0,0.00016712,2]
[359132645,1745728238628,-400.0,0.00016712,2]
[359132646,1745728238638,-400.0,0.00016712,2]
[359132647,1745728238647,-400.0,0.00016712,2]
[359132648,1745728238657,-400.0,0.00016712,2]
[359132649,1745728238668,-151.0,0.00016712,2]
[359132650,1745728238678,-151.0,0.00016712,2]
[359132651,1745728238691,-429.27,0.00016712,2]
[359132652,1745728238701,-151.0,0.00016712,2]
[359132653,1745728238711,-402.48,0.00016712,2]
[359132654,1745728238720,-400.0,0.00016712,2]
[359132655,1745728238730,-400.0,0.00016712,2]
[359132656,1745728238740,-400.0,0.00016712,2]
[359132657,1745728238749,-238.422533,0.00016712,2]
[359132658,1745728238759,-478.17,0.00016712,2]
[359132659,1745728238768,-400.0,0.00016712,2]
[359132660,1745728238778,-151.0,0.00016712,2]
[359132661,1745728238788,-490.27,0.00016712,2]
[359132662,1745728238797,-165.40510812,0.00016712,2]
[359132663,1745728238807,-159.95449453,0.00016712,2]
[359132664,1745728238817,-400.0,0.00016712,2]
[359132665,1745728238826,-400.0,0.00016712,2]
[359132666,1745728238836,-151.0,0.00016712,2]
[359132667,1745728238846,-269.738534,0.00016712,2]
[359132668,1745728238855,-431.58,0.00016712,2]
[359132669,1745728238865,-151.0,0.00016712,2]
[359132670,1745728238874,-400.0,0.00016712,2]
[359132671,1745728238884,-151.0,0.00016712,2]
[359132672,1745728238894,-400.0,0.00016712,2]
[359132673,1745728238903,-152.13396,0.00016712,2]
[359132674,1745728238913,-400.0,0.00016712,2]
[359132675,1745728238923,-400.0,0.00016712,2]
[359132676,1745728238932,-458.22,0.00016712,2]
[359132677,1745728238941,-400.0,0.00016712,2]
[359132678,1745728238951,-400.0,0.00016712,2]
[359132679,1745728238960,-240.28856717,0.00016712,2]
[359132680,1745728238970,-400.0,0.00016712,2]
[359132681,1745728238979,-400.0,0.00016712,2]
[359132682,1745728238989,-400.0,0.00016712,2]
[359132683,1745728238998,-400.0,0.00016712,2]
[359132684,1745728239008,-400.0,0.00016712,2]
[359132685,1745728239017,-451.06029014,0.00016712,2]
[359132686,1745728239027,-151.0,0.00016712,2]
[359132687,1745728239037,-400.0,0.00016712,2]
[359132688,1745728239046,-400.0,0.00016712,2]
[359132689,1745728239056,-400.0,0.00016712,2]
[359132690,1745728239065,-400.0,0.00016712,2]
[359132691,1745728239075,-400.0,0.00016712,2]
[359132692,1745728239084,-151.0,0.00016712,2]
[359132693,1745728239093,-400.0,0.00016712,2]
[359132694,1745728239103,-400.0,0.00016712,2]
[359132695,1745728239112,-151.0,0.00016712,2]
[359132696,1745728239122,-400.0,0.00016712,2]
[359132697,1745728239131,-400.0,0.00016712,2]
[359132698,1745728239140,-151.0,0.00016712,2]
[359132699,1745728239149,-400.0,0.00016712,2]
[359132700,1745728239159,-562.556638,0.00016712,2]
[359132701,1745728239169,-771.953858,0.00016712,2]
[359132702,1745728239178,-562.556638,0.00016712,2]
[359132703,1745728239187,-771.953858,0.00016712,2]
[359132704,1745728239197,-151.0,0.00016712,2]
[359132705,1745728239206,-194.6429155,0.00016712,2]
[359132706,1745728239216,-400.0,0.00016712,2]
[359132707,1745728239226,-151.0,0.00016712,2]
[359132708,1745728239235,-400.0,0.00016712,2]
[359132709,1745728239245,-400.0,0.00016712,2]
[359132710,1745728239255,-400.0,0.00016712,2]
[359132711,1745728239266,-154.395871,0.00016712,2]
[359132712,1745728239275,-151.0,0.00016712,2]
[359132713,1745728239284,-400.0,0.00016712,2]
[359132714,1745728239294,-400.0,0.00016712,2]
[359132715,1745728239303,-855.66,0.00016712,2]
[359132716,1745728239312,-151.0,0.00016712,2]
[359132717,1745728239322,-151.0,0.00016712,2]
[359132718,1745728239331,-305.660632,0.00016712,2]
[359132719,1745728239341,-407.07,0.00016712,2]
[359132720,1745728239350,-305.660632,0.00016712,2]
[359132721,1745728239360,-151.0,0.00016712,2]
[359132722,1745728239369,-172.56854732,0.00016712,2]
[359132723,1745728239378,-154.140392,0.00016712,2]
[359132724,1745728239388,-151.0,0.00016712,2]
[359132725,1745728239398,-400.0,0.00016712,2]
[359132726,1745728239408,-768.34,0.00016712,2]
[359132727,1745728239418,-151.0,0.00016712,2]
[359132728,1745728239428,-400.0,0.00016712,2]
[359132730,1745728239478,-400.0,0.00016712,2]
[359132731,1745728239487,-400.0,0.00016712,2]
[359132732,1745728239497,-400.0,0.00016712,2]
[359132733,1745728239506,-165.272731,0.00016712,2]
[359132734,1745728239515,-759.3,0.00016712,2]
[359132735,1745728239525,-400.0,0.00016712,2]
[359132736,1745728239535,-178.53151462,0.00016712,2]
[359132737,1745728239545,-509.97,0.00016712,2]
[359132738,1745728239554,-400.0,0.00016712,2]
[359132739,1745728239564,-151.0,0.00016712,2]
[359132740,1745728239574,-400.0,0.00016712,2]
[359132741,1745728239584,-400.0,0.00016712,2]
[359132742,1745728239593,-151.0,0.00016712,2]
[359132743,1745728239603,-400.0,0.00016712,2]
[359132744,1745728239612,-400.0,0.00016712,2]
[359132745,1745728239622,-400.0,0.00016712,2]
[359132746,1745728239631,-400.0,0.00016712,2]
[359132747,1745728239639,-191.45502426,0.00016712,2]
[359132748,1745728239649,-447.36,0.00016712,2]
[359132749,1745728239658,-400.0,0.00016712,2]
[359132750,1745728239669,-949.7,0.00016712,2]
[359132751,1745728239679,-151.0,0.00016712,2]
[359132752,1745728239692,-151.0,0.00016712,2]
[359132753,1745728239701,-400.0,0.00016712,2]
[359132754,1745728239711,-151.0,0.00016712,2]
[359132755,1745728239721,-456.67,0.00016712,2]
[359132756,1745728239732,-151.0,0.00016712,2]
[359132757,1745728239742,-151.0,0.00016712,2]
[359132758,1745728239752,-400.0,0.00016712,2]
[359132759,1745728239763,-400.0,0.00016712,2]
[359132760,1745728239772,-169.15430033,0.00016712,2]
[359132761,1745728239781,-400.0,0.00016712,2]
[359132762,1745728239793,-400.0,0.00016712,2]
[359132763,1745728239804,-400.0,0.00016712,2]
[359132764,1745728239814,-400.0,0.00016712,2]
[359132765,1745728239826,-400.0,0.00016712,2]
[359132766,1745728239837,-151.0,0.00016712,2]
[359132767,1745728239848,-193.70835971,0.00016712,2]
[359132768,1745728239857,-151.0,0.00016712,2]
[359132769,1745728239867,-400.0,0.00016712,2]
[359132770,1745728239879,-151.0,0.00016712,2]
[359132771,1745728239890,-400.0,0.00016712,2]
[359132772,1745728239900,-400.0,0.00016712,2]
[359132773,1745728239909,-1046.68,0.00016712,2]
[359132774,1745728239920,-400.0,0.00016712,2]
[359132775,1745728239930,-400.0,0.00016712,2]
[359132776,1745728239939,-400.0,0.00016712,2]
[359132777,1745728239948,-400.0,0.00016712,2]
[359132778,1745728239958,-154.436824,0.00016712,2]
[359132779,1745728239967,-400.0,0.00016712,2]
[359132780,1745728239977,-500.0,0.00016712,2]
[359132781,1745728239986,-151.0,0.00016712,2]
[359132782,1745728239995,-400.0,0.00016712,2]
[359132783,1745728240005,-400.0,0.00016712,2]
[359132784,1745728240014,-151.0,0.00016712,2]
[359132785,1745728240024,-400.0,0.00016712,2]
[359132786,1745728240034,-400.0,0.00016712,2]
[359132787,1745728240043,-400.0,0.00016712,2]
[359132788,1745728240053,-510.59050031,0.00016712,2]
[359132789,1745728240062,-716.53,0.00016712,2]
[359132790,1745728240072,-151.0,0.00016712,2]
[359132791,1745728240081,-511.76304924,0.00016712,2]
[359132792,1745728240090,-400.0,0.00016712,2]
[359132793,1745728240100,-400.0,0.00016712,2]
[359132794,1745728240109,-400.0,0.00016712,2]
[359132795,1745728240119,-400.0,0.00016712,2]
[359132796,1745728240128,-400.0,0.00016712,2]
[359132797,1745728240138,-151.0,0.00016712,2]
[359132798,1745728240147,-500.0,0.00016712,2]
[359132799,1745728240156,-391.98946048,0.00016728,2]
[359132800,1745728240166,-151.0,0.00016733,2]
[359132801,1745728240175,-213.090615,0.00016733,2]
[359132802,1745728240185,-151.0,0.00016733,2]
[359132804,1745728240194,-714.25164494,0.00016734,2]
[359132806,1745728240204,-1624.51043499,0.0001676,2]
[359132807,1745728240213,-500.0,0.00016773,2]
[359132808,1745728240222,-500.0,0.00016773,2]
[359132809,1745728240232,-500.0,0.00016773,2]
[359132810,1745728240241,-500.0,0.00016773,2]
[359132811,1745728240251,-505.79077755,0.00016773,2]
[359132812,1745728240260,-502.46837318,0.00016773,2]
[359132813,1745728240269,-500.0,0.00016773,2]
[359132814,1745728240278,-500.0,0.00016773,2]
[359132815,1745728240288,-500.0,0.00016773,2]
[359132816,1745728240298,-500.0,0.00016773,2]
[359132817,1745728240307,-500.0,0.00016773,2]
[359132818,1745728240317,-500.0,0.00016773,2]
[359132819,1745728240327,-500.0,0.00016773,2]
[359132820,1745728240336,-500.0,0.00016773,2]
[359132821,1745728240346,-221.143457,0.00016773,2]
[359132822,1745728240355,-151.0,0.00016773,2]
[359132823,1745728240364,-151.0,0.00016773,2]
[359132824,1745728240374,-151.0,0.00016773,2]
[359132825,1745728240383,-1500.0,0.00016848,2]
[359132826,1745728240394,-1624.51043499,0.000169,2]
[359132827,1745728240403,-256.138011,0.000169,2]
[359132828,1745728240413,-151.0,0.000169,2]
[359132829,1745728240423,-151.0,0.000169,2]
[359132830,1745728240432,-151.0,0.000169,2]
[359132831,1745728240443,-151.0,0.000169,2]
[359132832,1745728240452,-151.0,0.000169,2]
[359132833,1745728240462,-165.428004,0.00016973,2]
[359132834,1745728240471,-159.975139,0.00016973,2]
[359132835,1745728240480,-151.907022,0.00016973,2]
[359132836,1745728240489,-400.0,0.00016986,2]
[359132837,1745728240499,-400.0,0.00016986,2]
[359132838,1745728240509,-400.0,0.00016986,2]
[359132839,1745728240518,-400.0,0.00016986,2]
[359132840,1745728240528,-400.0,0.00016986,2]
[359132841,1745728240538,-400.0,0.00016986,2]
[359132842,1745728240548,-400.0,0.00016986,2]
[359132843,1745728240558,-504.63,0.00016986,2]
[359132844,1745728240568,-465.24,0.00016986,2]
[359132845,1745728240577,-151.0,0.00016986,2]
[359132846,1745728240587,-432.16,0.00016986,2]
[359132847,1745728240597,-400.0,0.00016986,2]
[359132848,1745728240607,-151.0,0.00016986,2]
[359132849,1745728240618,-400.0,0.00016986,2]
[359132850,1745728240628,-400.0,0.00016986,2]
[359132851,1745728240640,-400.0,0.00016986,2]
[359132852,1745728240650,-500.0,0.00016986,2]
[359132853,1745728240662,-245.24302045,0.00016986,2]
[359132854,1745728240673,-400.0,0.00016986,2]
[359132855,1745728240686,-400.0,0.00016986,2]